[Event "Titled Tuesday Blitz June 21 Early 2022"]
[White "Fedoseev, Vladimir"]
[Black "Yang, Kaiqi"]
[WhiteFideId "24130737"]
[BlackFideId "8604398"]
[WhiteElo "2726"]
[BlackElo "2373"]
[Result "1-0"]
[Round "04"]
[TimeControl "180+1"]
[Date "2022.06.21"]
[WhiteClock "0:00:10"]
[BlackClock "0:00:02"]

1. e4 {[%clk 0:00:40]}  c5 {[%clk 0:02:58]} 2. Nf3 {[%clk 0:00:40]}  e6 {[%clk 0:02:58]} 3. c3 {[%clk 0:00:40]}  Nf6 {[%clk 0:02:58]} 4. d4 {[%clk 0:00:41]}  Nxe4 {[%clk 0:02:51]} 5. Bd3 {[%clk 0:00:41]}  d5 {[%clk 0:02:51]} 6. Qe2 {[%clk 0:00:41]}  Nf6 {[%clk 0:02:37]} 7. Bg5 {[%clk 0:00:41]}  Be7 {[%clk 0:02:37]} 8. Bxf6 {[%clk 0:00:41]}  gxf6 {[%clk 0:02:30]} 9. Nbd2 {[%clk 0:00:37]}  c4 {[%clk 0:02:27]} 10. Bc2 {[%clk 0:00:37]}  Nc6 {[%clk 0:02:27]} 11. O-O {[%clk 0:00:36]}  Qc7 {[%clk 0:02:21]} 12. Rae1 {[%clk 0:00:36]}  Bd7 {[%clk 0:02:18]} 13. b4 {[%clk 0:00:29]}  h5 {[%clk 0:02:11]} 14. b5 {[%clk 0:00:28]}  Na5 {[%clk 0:02:10]} 15. a4 {[%clk 0:00:29]}  h4 {[%clk 0:02:08]} 16. Kh1 {[%clk 0:00:27]}  O-O-O {[%clk 0:02:06]} 17. Ng1 {[%clk 0:00:27]}  Bd6 {[%clk 0:02:02]} 18. Ndf3 {[%clk 0:00:23]}  Rdg8 {[%clk 0:02:00]} 19. Nh3 {[%clk 0:00:20]}  Re8 {[%clk 0:01:27]} 20. Qe3 {[%clk 0:00:18]}  Kb8 {[%clk 0:01:22]} 21. Rd1 {[%clk 0:00:17]}  Bc8 {[%clk 0:01:15]} 22. Rfe1 {[%clk 0:00:17]}  f5 {[%clk 0:00:57]} 23. Ne5 {[%clk 0:00:16]}  f6 {[%clk 0:00:54]} 24. Nf3 {[%clk 0:00:16]}  Qf7 {[%clk 0:00:46]} 25. Kg1 {[%clk 0:00:16]}  e5 {[%clk 0:00:43]} 26. dxe5 {[%clk 0:00:15]}  fxe5 {[%clk 0:00:42]} 27. Nfg5 {[%clk 0:00:14]}  Qg6 {[%clk 0:00:41]} 28. Rxd5 {[%clk 0:00:14]}  Bc7 {[%clk 0:00:40]} 29. Red1 {[%clk 0:00:09]}  Rh5 {[%clk 0:00:39]} 30. Nf3 {[%clk 0:00:09]}  Qg7 {[%clk 0:00:37]} 31. Kf1 {[%clk 0:00:08]}  f4 {[%clk 0:00:37]} 32. Qe2 {[%clk 0:00:06]}  Bxh3 {[%clk 0:00:36]} 33. gxh3 {[%clk 0:00:06]}  Rg8 {[%clk 0:00:36]} 34. Ke1 {[%clk 0:00:06]}  e4 {[%clk 0:00:32]} 35. Rxh5 {[%clk 0:00:05]}  Qxc3+ {[%clk 0:00:25]} 36. Kf1 {[%clk 0:00:05]}  exf3 {[%clk 0:00:25]} 37. Qe6 {[%clk 0:00:05]}  Qg7 {[%clk 0:00:17]} 38. Qg4 {[%clk 0:00:05]}  Qf7 {[%clk 0:00:13]} 39. Rf5 {[%clk 0:00:03]}  Qe8 {[%clk 0:00:08]} 40. Re1 {[%clk 0:00:03]}  Qc8 {[%clk 0:00:04]} 41. Rg5 {[%clk 0:00:02]}  Rd8 {[%clk 0:00:03]} 42. Qxc8+ {[%clk 0:00:02]}  Kxc8 {[%clk 0:00:04]} 43. Bf5+ {[%clk 0:00:02]}  Kb8 {[%clk 0:00:05]} 44. Bg4 {[%clk 0:00:03]}  c3 {[%clk 0:00:04]} 45. Rg7 {[%clk 0:00:03]}  Nb3 {[%clk 0:00:04]} 46. Bxf3 {[%clk 0:00:04]}  c2 {[%clk 0:00:04]} 47. Kg2 {[%clk 0:00:04]}  c1=Q {[%clk 0:00:04]} 48. Rxc1 {[%clk 0:00:04]}  Nxc1 {[%clk 0:00:05]} 49. a5 {[%clk 0:00:04]}  Nb3 {[%clk 0:00:06]} 50. b6 {[%clk 0:00:05]}  axb6 {[%clk 0:00:06]} 51. axb6 {[%clk 0:00:06]}  Be5 {[%clk 0:00:04]} 52. Rxb7+ {[%clk 0:00:07]}  Kc8 {[%clk 0:00:05]} 53. Ra7 {[%clk 0:00:08]}  Bd4 {[%clk 0:00:04]} 54. Bg4+ {[%clk 0:00:08]}  Kb8 {[%clk 0:00:05]} 55. Bf3 {[%clk 0:00:08]}  Bxb6 {[%clk 0:00:04]} 56. Rb7+ {[%clk 0:00:09]}  Kc8 {[%clk 0:00:04]} 57. Rxb6 {[%clk 0:00:10]}  Nd4 {[%clk 0:00:04]} 58. Bg4+ {[%clk 0:00:09]}  Kc7 {[%clk 0:00:04]} 59. Rf6 {[%clk 0:00:10]}  f3+ {[%clk 0:00:04]} 60. Bxf3 {[%clk 0:00:11]}  Rg8+ {[%clk 0:00:04]} 61. Bg4 {[%clk 0:00:11]}  Nc6 {[%clk 0:00:02]} 62. Rh6 {[%clk 0:00:11]}  Ne5 {[%clk 0:00:02]} 63. Rxh4 {[%clk 0:00:12]}  Kd6 {[%clk 0:00:03]} 64. Kg3 {[%clk 0:00:12]}  Kd5 {[%clk 0:00:03]} 65. Rh7 {[%clk 0:00:12]}  Kd4 {[%clk 0:00:03]} 66. Re7 {[%clk 0:00:12]}  Nd3 {[%clk 0:00:03]} 67. f4 {[%clk 0:00:11]}  Nc5 {[%clk 0:00:02]} 68. Kf3 {[%clk 0:00:10]}  Ra8 {[%clk 0:00:02]} 69. Bf5 {[%clk 0:00:10]}  Ra3+ {[%clk 0:00:02]} 70. Kg4 {[%clk 0:00:11]}  Kd5 {[%clk 0:00:02]} 71. h4 {[%clk 0:00:11]}  Kd6 {[%clk 0:00:02]} 72. Re5 {[%clk 0:00:10]}  Ra2 {[%clk 0:00:03]} 73. Kg3 {[%clk 0:00:10]}  Ra3+ {[%clk 0:00:02]} 74. Kf2 {[%clk 0:00:11]}  Ra2+ {[%clk 0:00:03]} 75. Re2 {[%clk 0:00:10]}  Ra4 {[%clk 0:00:03]} 76. Kg3 {[%clk 0:00:10]}  Ra3+ {[%clk 0:00:03]} 77. Kg4 {[%clk 0:00:10]}  Ra4 {[%clk 0:00:03]} 78. h5 {[%clk 0:00:11]}  Nd7 {[%clk 0:00:02]} 79. Rd2+ {[%clk 0:00:10]} 1-0


[Site "https://www.chess.com"]

[Event "Titled Tuesday Blitz June 21 Early 2022"]
[White "Gabrielian, Artur"]
[Black "Bortnyk, Mykola"]
[WhiteFideId "4131002"]
[BlackFideId "14120836"]
[WhiteElo "2440"]
[BlackElo "2582"]
[Result "0-1"]
[Round "04"]
[TimeControl "180+1"]
[Date "2022.06.21"]
[WhiteClock "0:00:02"]
[BlackClock "0:00:07"]

1. e4 {[%clk 0:02:57]}  Nf6 {[%clk 0:03:00]} 2. e5 {[%clk 0:02:56]}  Nd5 {[%clk 0:03:00]} 3. d4 {[%clk 0:02:56]}  d6 {[%clk 0:03:01]} 4. Nf3 {[%clk 0:02:57]}  dxe5 {[%clk 0:02:59]} 5. Nxe5 {[%clk 0:02:56]}  c6 {[%clk 0:03:00]} 6. Be2 {[%clk 0:02:53]}  Bf5 {[%clk 0:02:59]} 7. O-O {[%clk 0:02:49]}  Nd7 {[%clk 0:02:59]} 8. Nf3 {[%clk 0:02:49]}  e6 {[%clk 0:02:56]} 9. c4 {[%clk 0:02:49]}  N5f6 {[%clk 0:02:56]} 10. Nc3 {[%clk 0:02:48]}  Bd6 {[%clk 0:02:56]} 11. Nh4 {[%clk 0:02:23]}  Bg6 {[%clk 0:02:55]} 12. g3 {[%clk 0:02:22]}  O-O {[%clk 0:02:48]} 13. Be3 {[%clk 0:02:22]}  Qc7 {[%clk 0:02:43]} 14. Nxg6 {[%clk 0:02:20]}  hxg6 {[%clk 0:02:42]} 15. Qc2 {[%clk 0:02:18]}  e5 {[%clk 0:02:41]} 16. Rad1 {[%clk 0:02:15]}  exd4 {[%clk 0:02:40]} 17. Bxd4 {[%clk 0:02:15]}  Rfe8 {[%clk 0:02:36]} 18. Bf3 {[%clk 0:02:14]}  Bc5 {[%clk 0:02:33]} 19. Bg2 {[%clk 0:02:13]}  Rad8 {[%clk 0:02:22]} 20. b3 {[%clk 0:02:05]}  a5 {[%clk 0:02:07]} 21. h3 {[%clk 0:02:00]}  Bxd4 {[%clk 0:01:47]} 22. Rxd4 {[%clk 0:01:59]}  Nc5 {[%clk 0:01:46]} 23. Rxd8 {[%clk 0:01:58]}  Rxd8 {[%clk 0:01:44]} 24. Rd1 {[%clk 0:01:57]}  Re8 {[%clk 0:01:42]} 25. Qd2 {[%clk 0:01:52]}  Qe5 {[%clk 0:01:36]} 26. Kh2 {[%clk 0:01:35]}  g5 {[%clk 0:01:32]} 27. Qc2 {[%clk 0:01:28]}  Ne6 {[%clk 0:01:16]} 28. Ne4 {[%clk 0:01:03]}  Nd4 {[%clk 0:01:12]} 29. Nxf6+ {[%clk 0:01:01]}  Qxf6 {[%clk 0:01:13]} 30. Qd2 {[%clk 0:01:00]}  c5 {[%clk 0:01:10]} 31. Re1 {[%clk 0:00:57]}  Rd8 {[%clk 0:01:05]} 32. Kh1 {[%clk 0:00:54]}  Nf3 {[%clk 0:00:57]} 33. Qxd8+ {[%clk 0:00:33]}  Qxd8 {[%clk 0:00:57]} 34. Bxf3 {[%clk 0:00:33]}  b6 {[%clk 0:00:54]} 35. Kg2 {[%clk 0:00:31]}  Qd2 {[%clk 0:00:40]} 36. Re8+ {[%clk 0:00:30]}  Kh7 {[%clk 0:00:40]} 37. Re2 {[%clk 0:00:31]}  Qc1 {[%clk 0:00:35]} 38. a4 {[%clk 0:00:30]}  f5 {[%clk 0:00:34]} 39. Re3 {[%clk 0:00:29]}  Qd2 {[%clk 0:00:32]} 40. Re2 {[%clk 0:00:28]}  Qd4 {[%clk 0:00:29]} 41. Re6 {[%clk 0:00:26]}  g4 {[%clk 0:00:23]} 42. hxg4 {[%clk 0:00:25]}  fxg4 {[%clk 0:00:23]} 43. Be4+ {[%clk 0:00:25]}  g6 {[%clk 0:00:24]} 44. Bxg6+ {[%clk 0:00:23]}  Kg7 {[%clk 0:00:25]} 45. Be4 {[%clk 0:00:22]}  Kf7 {[%clk 0:00:21]} 46. Bd5 {[%clk 0:00:22]}  Kg7 {[%clk 0:00:21]} 47. Rxb6 {[%clk 0:00:22]}  Qc3 {[%clk 0:00:21]} 48. Rb5 {[%clk 0:00:19]}  Kf6 {[%clk 0:00:21]} 49. Rxc5 {[%clk 0:00:19]}  Qxb3 {[%clk 0:00:22]} 50. Rb5 {[%clk 0:00:19]}  Qxa4 {[%clk 0:00:21]} 51. Rb6+ {[%clk 0:00:17]}  Ke5 {[%clk 0:00:21]} 52. Re6+ {[%clk 0:00:17]}  Kd4 {[%clk 0:00:21]} 53. Re4+ {[%clk 0:00:18]}  Kc5 {[%clk 0:00:21]} 54. Rxg4 {[%clk 0:00:17]}  Qb3 {[%clk 0:00:21]} 55. Rg5 {[%clk 0:00:14]}  a4 {[%clk 0:00:21]} 56. Bf7+ {[%clk 0:00:14]}  Kd4 {[%clk 0:00:21]} 57. Rg4+ {[%clk 0:00:13]}  Kc3 {[%clk 0:00:20]} 58. Rf4 {[%clk 0:00:11]}  Kd2 {[%clk 0:00:18]} 59. c5 {[%clk 0:00:11]}  Qb7+ {[%clk 0:00:17]} 60. Kg1 {[%clk 0:00:10]}  a3 {[%clk 0:00:17]} 61. Kh2 {[%clk 0:00:06]}  Ke1 {[%clk 0:00:14]} 62. Kg1 {[%clk 0:00:06]}  Qc7 {[%clk 0:00:14]} 63. Rf5 {[%clk 0:00:06]}  Kd2 {[%clk 0:00:13]} 64. Rd5+ {[%clk 0:00:06]}  Kc3 {[%clk 0:00:13]} 65. Rf5 {[%clk 0:00:07]}  Kb2 {[%clk 0:00:12]} 66. Kg2 {[%clk 0:00:06]}  Qc6+ {[%clk 0:00:12]} 67. Kg1 {[%clk 0:00:06]}  a2 {[%clk 0:00:12]} 68. Bxa2 {[%clk 0:00:06]}  Kxa2 {[%clk 0:00:13]} 69. Rf4 {[%clk 0:00:05]}  Kb3 {[%clk 0:00:13]} 70. Kh2 {[%clk 0:00:04]}  Kc3 {[%clk 0:00:14]} 71. Kg1 {[%clk 0:00:05]}  Kd2 {[%clk 0:00:14]} 72. Rd4+ {[%clk 0:00:03]}  Ke2 {[%clk 0:00:14]} 73. Rd6 {[%clk 0:00:03]}  Qe4 {[%clk 0:00:10]} 74. Rf6 {[%clk 0:00:03]}  Qb1+ {[%clk 0:00:10]} 75. Kh2 {[%clk 0:00:04]}  Kf1 {[%clk 0:00:09]} 76. g4 {[%clk 0:00:03]}  Qe4 {[%clk 0:00:07]} 77. Kg3 {[%clk 0:00:03]}  Qe5+ {[%clk 0:00:07]} 78. Rf4 {[%clk 0:00:03]}  Qxc5 {[%clk 0:00:07]} 79. Rf5 {[%clk 0:00:03]}  Qd6+ {[%clk 0:00:07]} 80. Kf3 {[%clk 0:00:04]}  Qd3+ {[%clk 0:00:07]} 81. Kf4 {[%clk 0:00:04]}  Kxf2 {[%clk 0:00:07]} 82. g5 {[%clk 0:00:02]}  Qd4# {[%clk 0:00:07]} 0-1


[Site "https://www.chess.com"]

[Event "Titled Tuesday Blitz June 21 Early 2022"]
[White "Gardezi, Arsal"]
[Black "Szente Varga, Fruzsina"]
[WhiteFideId "30949521"]
[BlackFideId "712264"]
[WhiteElo "1781"]
[BlackElo "1994"]
[Result "0-1"]
[Round "04"]
[TimeControl "180+1"]
[Date "2022.06.21"]
[WhiteClock "0:00:47"]
[BlackClock "0:00:14"]

1. e4 {[%clk 0:02:49]}  e5 {[%clk 0:02:59]} 2. Nf3 {[%clk 0:02:45]}  Nc6 {[%clk 0:02:59]} 3. Bb5 {[%clk 0:02:42]}  a6 {[%clk 0:02:57]} 4. Ba4 {[%clk 0:02:39]}  Nf6 {[%clk 0:02:57]} 5. O-O {[%clk 0:02:35]}  Be7 {[%clk 0:02:51]} 6. Re1 {[%clk 0:02:35]}  b5 {[%clk 0:02:50]} 7. Bb3 {[%clk 0:02:32]}  O-O {[%clk 0:02:51]} 8. c3 {[%clk 0:02:32]}  d5 {[%clk 0:02:50]} 9. exd5 {[%clk 0:02:28]}  Nxd5 {[%clk 0:02:51]} 10. Nxe5 {[%clk 0:02:28]}  Nxe5 {[%clk 0:02:47]} 11. Rxe5 {[%clk 0:02:29]}  c6 {[%clk 0:02:47]} 12. d3 {[%clk 0:02:27]}  Bd6 {[%clk 0:02:48]} 13. Re1 {[%clk 0:02:26]}  Qh4 {[%clk 0:02:46]} 14. g3 {[%clk 0:02:25]}  Qh3 {[%clk 0:02:47]} 15. Re4 {[%clk 0:02:22]}  Bd7 {[%clk 0:01:49]} 16. Nd2 {[%clk 0:02:07]}  Rae8 {[%clk 0:01:32]} 17. Rh4 {[%clk 0:02:01]}  Qf5 {[%clk 0:01:30]} 18. Ne4 {[%clk 0:01:55]}  Bc7 {[%clk 0:01:19]} 19. Bc2 {[%clk 0:01:35]}  Nf6 {[%clk 0:01:06]} 20. Nxf6+ {[%clk 0:01:34]}  Qxf6 {[%clk 0:01:06]} 21. Be3 {[%clk 0:01:32]}  g6 {[%clk 0:00:56]} 22. Qd2 {[%clk 0:01:27]}  Rb8 {[%clk 0:00:22]} 23. Bg5 {[%clk 0:01:16]}  Qd6 {[%clk 0:00:17]} 24. d4 {[%clk 0:01:15]}  Qd5 {[%clk 0:00:16]} 25. Be4 {[%clk 0:01:08]}  Qc4 {[%clk 0:00:16]} 26. b3 {[%clk 0:01:05]}  Qe6 {[%clk 0:00:16]} 27. d5 {[%clk 0:01:03]}  cxd5 {[%clk 0:00:15]} 28. Bxd5 {[%clk 0:01:03]}  Qf5 {[%clk 0:00:16]} 29. Be4 {[%clk 0:01:01]}  Qe6 {[%clk 0:00:16]} 30. Re1 {[%clk 0:01:02]}  Qb6 {[%clk 0:00:16]} 31. Qxd7 {[%clk 0:01:00]}  Be5 {[%clk 0:00:14]} 32. Bd5 {[%clk 0:00:57]}  Bxc3 {[%clk 0:00:14]} 33. Be7 {[%clk 0:00:56]}  Bxe1 {[%clk 0:00:13]} 34. Bxf8 {[%clk 0:00:55]}  Rxf8 {[%clk 0:00:14]} 35. Re4 {[%clk 0:00:53]}  Qxf2+ {[%clk 0:00:14]} 36. Kh1 {[%clk 0:00:47]}  Qf1# {[%clk 0:00:14]} 0-1


[Site "https://www.chess.com"]

[Event "Titled Tuesday Blitz June 21 Early 2022"]
[White "Glavina, Pablo"]
[Black "Petrova, Irina"]
[WhiteFideId "100234"]
[BlackFideId "14124122"]
[WhiteElo "2369"]
[BlackElo "1993"]
[Result "0-1"]
[Round "04"]
[TimeControl "180+1"]
[Date "2022.06.21"]
[WhiteClock "0:00:03"]
[BlackClock "0:00:52"]

1. e4 {[%clk 0:03:00]}  d6 {[%clk 0:02:59]} 2. d4 {[%clk 0:03:00]}  Nf6 {[%clk 0:02:59]} 3. Nc3 {[%clk 0:03:00]}  e5 {[%clk 0:02:59]} 4. dxe5 {[%clk 0:02:58]}  dxe5 {[%clk 0:03:00]} 5. Qxd8+ {[%clk 0:02:58]}  Kxd8 {[%clk 0:03:01]} 6. Bc4 {[%clk 0:02:58]}  Ke8 {[%clk 0:03:00]} 7. Nf3 {[%clk 0:02:57]}  Bd6 {[%clk 0:02:59]} 8. Be3 {[%clk 0:02:52]}  a6 {[%clk 0:02:58]} 9. O-O-O {[%clk 0:02:48]}  b5 {[%clk 0:02:56]} 10. Bb3 {[%clk 0:02:45]}  Bb7 {[%clk 0:02:55]} 11. Ng5 {[%clk 0:02:19]}  Rf8 {[%clk 0:02:52]} 12. f3 {[%clk 0:02:19]}  Nbd7 {[%clk 0:02:48]} 13. Nh3 {[%clk 0:02:15]}  Ke7 {[%clk 0:02:42]} 14. Nf2 {[%clk 0:02:15]}  c6 {[%clk 0:02:33]} 15. Ne2 {[%clk 0:02:11]}  a5 {[%clk 0:02:28]} 16. a4 {[%clk 0:02:09]}  Nc5 {[%clk 0:02:07]} 17. Bxc5 {[%clk 0:01:56]}  Bxc5 {[%clk 0:02:07]} 18. Nd3 {[%clk 0:01:56]}  Be3+ {[%clk 0:02:06]} 19. Kb1 {[%clk 0:01:55]}  Nd7 {[%clk 0:02:01]} 20. Ng3 {[%clk 0:01:51]}  g6 {[%clk 0:01:56]} 21. Rhe1 {[%clk 0:01:48]}  Bb6 {[%clk 0:01:55]} 22. Nf1 {[%clk 0:01:11]}  f6 {[%clk 0:01:50]} 23. Ne3 {[%clk 0:01:07]}  Rfd8 {[%clk 0:01:29]} 24. h4 {[%clk 0:01:02]}  Bxe3 {[%clk 0:01:24]} 25. Rxe3 {[%clk 0:01:02]}  Nc5 {[%clk 0:01:25]} 26. axb5 {[%clk 0:00:40]}  cxb5 {[%clk 0:01:14]} 27. Ba2 {[%clk 0:00:28]}  Nxd3 {[%clk 0:01:05]} 28. Rexd3 {[%clk 0:00:26]}  Rxd3 {[%clk 0:01:00]} 29. Rxd3 {[%clk 0:00:27]}  Rd8 {[%clk 0:00:59]} 30. Rxd8 {[%clk 0:00:21]}  Kxd8 {[%clk 0:00:59]} 31. Bg8 {[%clk 0:00:22]}  h6 {[%clk 0:00:57]} 32. Bf7 {[%clk 0:00:20]}  g5 {[%clk 0:00:57]} 33. h5 {[%clk 0:00:21]}  Ke7 {[%clk 0:00:57]} 34. Bg6 {[%clk 0:00:19]}  Kd6 {[%clk 0:00:55]} 35. Bf5 {[%clk 0:00:19]}  Bc6 {[%clk 0:00:54]} 36. Kc1 {[%clk 0:00:19]}  Be8 {[%clk 0:00:54]} 37. Kd2 {[%clk 0:00:19]}  Bxh5 {[%clk 0:00:53]} 38. g4 {[%clk 0:00:20]}  Be8 {[%clk 0:00:53]} 39. Kc3 {[%clk 0:00:20]}  Kc5 {[%clk 0:00:52]} 40. b3 {[%clk 0:00:19]}  h5 {[%clk 0:00:51]} 41. Kd3 {[%clk 0:00:15]}  h4 {[%clk 0:00:50]} 42. Ke2 {[%clk 0:00:02]}  a4 {[%clk 0:00:50]} 43. bxa4 {[%clk 0:00:02]}  bxa4 {[%clk 0:00:51]} 44. Be6 {[%clk 0:00:02]}  a3 {[%clk 0:00:51]} 45. Bb3 {[%clk 0:00:02]}  Bb5+ {[%clk 0:00:50]} 46. Kf2 {[%clk 0:00:03]}  Bc4 {[%clk 0:00:51]} 47. Bxc4 {[%clk 0:00:02]}  Kxc4 {[%clk 0:00:52]} 48. Kg2 {[%clk 0:00:02]}  a2 {[%clk 0:00:52]} 49. Kh3 {[%clk 0:00:03]}  a1=Q {[%clk 0:00:52]} 0-1


[Site "https://www.chess.com"]

[Event "Titled Tuesday Blitz June 21 Early 2022"]
[White "Gormally, Daniel W"]
[Black "Goltseva, Ekaterina"]
[WhiteFideId "406465"]
[BlackFideId "24173770"]
[WhiteElo "2543"]
[BlackElo "2086"]
[Result "0-1"]
[Round "04"]
[TimeControl "180+1"]
[Date "2022.06.21"]
[WhiteClock "0:00:33"]
[BlackClock "0:00:02"]

1. d4 {[%clk 0:02:59]}  Nf6 {[%clk 0:02:56]} 2. c4 {[%clk 0:02:59]}  e6 {[%clk 0:02:55]} 3. Nf3 {[%clk 0:02:59]}  d5 {[%clk 0:02:55]} 4. Nc3 {[%clk 0:02:59]}  dxc4 {[%clk 0:02:56]} 5. e3 {[%clk 0:02:58]}  a6 {[%clk 0:02:52]} 6. a4 {[%clk 0:02:57]}  b6 {[%clk 0:02:52]} 7. Bxc4 {[%clk 0:02:57]}  Bb7 {[%clk 0:02:53]} 8. O-O {[%clk 0:02:57]}  Bb4 {[%clk 0:02:52]} 9. Qe2 {[%clk 0:02:49]}  O-O {[%clk 0:02:49]} 10. Bd3 {[%clk 0:02:46]}  c5 {[%clk 0:02:09]} 11. dxc5 {[%clk 0:02:45]}  Bxc5 {[%clk 0:02:01]} 12. e4 {[%clk 0:02:42]}  Nbd7 {[%clk 0:01:51]} 13. e5 {[%clk 0:02:40]}  Bxf3 {[%clk 0:01:48]} 14. gxf3 {[%clk 0:02:40]}  Nxe5 {[%clk 0:01:47]} 15. Bxh7+ {[%clk 0:02:29]}  Kxh7 {[%clk 0:01:37]} 16. Qxe5 {[%clk 0:02:30]}  Qd3 {[%clk 0:01:32]} 17. Be3 {[%clk 0:02:24]}  Rac8 {[%clk 0:01:27]} 18. Rad1 {[%clk 0:02:22]}  Qc2 {[%clk 0:01:23]} 19. Rd2 {[%clk 0:02:19]}  Qg6+ {[%clk 0:01:18]} 20. Qg3 {[%clk 0:02:19]}  Nh5 {[%clk 0:00:52]} 21. Qxg6+ {[%clk 0:02:17]}  Kxg6 {[%clk 0:00:49]} 22. Kh1 {[%clk 0:02:16]}  Nf6 {[%clk 0:00:48]} 23. Rg1+ {[%clk 0:02:16]}  Kh7 {[%clk 0:00:48]} 24. Rg5 {[%clk 0:02:12]}  Bb4 {[%clk 0:00:43]} 25. Rd4 {[%clk 0:01:26]}  Bxc3 {[%clk 0:00:36]} 26. bxc3 {[%clk 0:01:26]}  Nd5 {[%clk 0:00:16]} 27. Rdg4 {[%clk 0:01:21]}  g6 {[%clk 0:00:12]} 28. Bd4 {[%clk 0:01:17]}  f6 {[%clk 0:00:07]} 29. Rxg6 {[%clk 0:01:17]}  Rg8 {[%clk 0:00:07]} 30. Rxg8 {[%clk 0:01:13]}  Rxg8 {[%clk 0:00:08]} 31. c4 {[%clk 0:01:02]}  e5 {[%clk 0:00:02]} 32. Rxg8 {[%clk 0:00:53]}  Kxg8 {[%clk 0:00:02]} 33. cxd5 {[%clk 0:00:42]}  exd4 {[%clk 0:00:02]} 34. Kg1 {[%clk 0:00:41]}  Kf7 {[%clk 0:00:02]} 35. h4 {[%clk 0:00:41]}  b5 {[%clk 0:00:01]} 36. axb5 {[%clk 0:00:40]}  axb5 {[%clk 0:00:02]} 37. h5 {[%clk 0:00:34]}  b4 {[%clk 0:00:01]} 38. h6 {[%clk 0:00:34]}  b3 {[%clk 0:00:01]} 39. h7 {[%clk 0:00:35]}  Kg7 {[%clk 0:00:02]} 40. Kg2 {[%clk 0:00:30]}  b2 {[%clk 0:00:02]} 41. h8=Q+ {[%clk 0:00:31]}  Kxh8 {[%clk 0:00:01]} 42. d6 {[%clk 0:00:32]}  b1=Q {[%clk 0:00:01]} 43. d7 {[%clk 0:00:32]}  Qb8 {[%clk 0:00:02]} 44. d8=Q+ {[%clk 0:00:33]}  Qxd8 {[%clk 0:00:02]} 0-1


[Site "https://www.chess.com"]

[Event "Titled Tuesday Blitz June 21 Early 2022"]
[White "Grigorov, Grigor"]
[Black "Bortnyk, Olexandr"]
[WhiteFideId "2907313"]
[BlackFideId "14120828"]
[WhiteElo "2510"]
[BlackElo "2723"]
[Result "1-0"]
[Round "04"]
[TimeControl "180+1"]
[Date "2022.06.21"]
[WhiteClock "0:00:14"]
[BlackClock "0:00:06"]

1. d4 {[%clk 0:03:00]}  d6 {[%clk 0:03:00]} 2. Nf3 {[%clk 0:03:00]}  Nf6 {[%clk 0:03:00]} 3. Bg5 {[%clk 0:02:59]}  Nbd7 {[%clk 0:03:00]} 4. Nbd2 {[%clk 0:02:58]}  c6 {[%clk 0:02:59]} 5. c3 {[%clk 0:02:58]}  e5 {[%clk 0:02:58]} 6. e4 {[%clk 0:02:57]}  Be7 {[%clk 0:02:57]} 7. Bd3 {[%clk 0:02:56]}  O-O {[%clk 0:02:55]} 8. O-O {[%clk 0:02:57]}  Qc7 {[%clk 0:02:41]} 9. Re1 {[%clk 0:02:57]}  Re8 {[%clk 0:02:41]} 10. a4 {[%clk 0:02:55]}  Nf8 {[%clk 0:02:41]} 11. dxe5 {[%clk 0:02:51]}  dxe5 {[%clk 0:02:41]} 12. Nc4 {[%clk 0:02:46]}  Ng6 {[%clk 0:02:41]} 13. b4 {[%clk 0:02:46]}  h6 {[%clk 0:02:39]} 14. Bxf6 {[%clk 0:02:44]}  Bxf6 {[%clk 0:02:39]} 15. Ne3 {[%clk 0:02:44]}  Rd8 {[%clk 0:02:37]} 16. Qc2 {[%clk 0:02:43]}  Nf4 {[%clk 0:02:36]} 17. Bc4 {[%clk 0:02:41]}  Be6 {[%clk 0:02:28]} 18. Bxe6 {[%clk 0:02:38]}  Nxe6 {[%clk 0:02:24]} 19. Rad1 {[%clk 0:02:37]}  g6 {[%clk 0:02:24]} 20. g3 {[%clk 0:02:31]}  h5 {[%clk 0:02:23]} 21. h4 {[%clk 0:02:31]}  Kg7 {[%clk 0:02:20]} 22. Kg2 {[%clk 0:02:26]}  b5 {[%clk 0:02:13]} 23. axb5 {[%clk 0:02:25]}  cxb5 {[%clk 0:02:14]} 24. Nd5 {[%clk 0:02:24]}  Qc4 {[%clk 0:02:13]} 25. Qc1 {[%clk 0:02:00]}  Rac8 {[%clk 0:02:05]} 26. Qe3 {[%clk 0:01:56]}  a6 {[%clk 0:01:34]} 27. Ra1 {[%clk 0:01:30]}  Rxd5 {[%clk 0:01:10]} 28. exd5 {[%clk 0:01:29]}  Qxd5 {[%clk 0:01:11]} 29. Rxa6 {[%clk 0:01:25]}  Rc4 {[%clk 0:01:12]} 30. Kg1 {[%clk 0:01:21]}  e4 {[%clk 0:01:07]} 31. Rxe6 {[%clk 0:00:40]}  Qxe6 {[%clk 0:01:08]} 32. Ng5 {[%clk 0:00:34]}  Bxg5 {[%clk 0:00:58]} 33. Qxg5 {[%clk 0:00:34]}  Qf5 {[%clk 0:00:24]} 34. Qxf5 {[%clk 0:00:32]}  gxf5 {[%clk 0:00:25]} 35. Rd1 {[%clk 0:00:32]}  Rxc3 {[%clk 0:00:24]} 36. Rd5 {[%clk 0:00:32]}  Kg6 {[%clk 0:00:17]} 37. Rxb5 {[%clk 0:00:32]}  f6 {[%clk 0:00:18]} 38. Rd5 {[%clk 0:00:26]}  Rc1+ {[%clk 0:00:15]} 39. Kg2 {[%clk 0:00:26]}  Rb1 {[%clk 0:00:16]} 40. b5 {[%clk 0:00:25]}  Rb2 {[%clk 0:00:17]} 41. Kf1 {[%clk 0:00:25]}  Rb1+ {[%clk 0:00:17]} 42. Ke2 {[%clk 0:00:24]}  Rb2+ {[%clk 0:00:18]} 43. Ke3 {[%clk 0:00:24]}  Rb3+ {[%clk 0:00:15]} 44. Ke2 {[%clk 0:00:19]}  Rb2+ {[%clk 0:00:14]} 45. Ke3 {[%clk 0:00:20]}  Rb4 {[%clk 0:00:08]} 46. Kd2 {[%clk 0:00:19]}  Rb2+ {[%clk 0:00:07]} 47. Kc3 {[%clk 0:00:16]}  Rxf2 {[%clk 0:00:04]} 48. b6 {[%clk 0:00:17]}  e3 {[%clk 0:00:05]} 49. Rd1 {[%clk 0:00:14]}  e2 {[%clk 0:00:01]} 50. Re1 {[%clk 0:00:14]}  Rf1 {[%clk 0:00:02]} 51. Rxe2 {[%clk 0:00:13]}  Rc1+ {[%clk 0:00:02]} 52. Rc2 {[%clk 0:00:13]}  Rb1 {[%clk 0:00:02]} 53. Rb2 {[%clk 0:00:14]}  Rc1+ {[%clk 0:00:03]} 54. Kd4 {[%clk 0:00:14]}  Rc8 {[%clk 0:00:03]} 55. b7 {[%clk 0:00:15]}  Rb8 {[%clk 0:00:04]} 56. Kd5 {[%clk 0:00:15]}  f4 {[%clk 0:00:04]} 57. gxf4 {[%clk 0:00:15]}  Kf5 {[%clk 0:00:05]} 58. Rb4 {[%clk 0:00:14]}  Kg4 {[%clk 0:00:06]} 59. Kc6 {[%clk 0:00:14]}  Kxh4 {[%clk 0:00:05]} 60. Kc7 {[%clk 0:00:14]}  Rxb7+ {[%clk 0:00:05]} 61. Kxb7 {[%clk 0:00:14]}  Kg3 {[%clk 0:00:05]} 62. f5 {[%clk 0:00:13]}  h4 {[%clk 0:00:06]} 63. Kc6 {[%clk 0:00:14]}  h3 {[%clk 0:00:07]} 64. Kd5 {[%clk 0:00:14]}  h2 {[%clk 0:00:07]} 65. Rb1 {[%clk 0:00:14]}  Kg2 {[%clk 0:00:06]} 66. Ke6 {[%clk 0:00:14]}  h1=Q {[%clk 0:00:06]} 67. Rxh1 {[%clk 0:00:14]} 1-0


[Site "https://www.chess.com"]